Cogmind - Beta 13 @@@ ROGUE MODE // 2024.03.05 @ 19:40:48 Player: Baxter Result: Self-destructed Performance ------------- Evolutions (0) 0 Regions Visited (4) 800 Robots Destroyed (20) 100 Value Destroyed (463) 463 Prototype IDs (23) 460 Alien Tech Used (0) 0 Bonus (308) 308 TOTAL SCORE: 2131 Bonus ------- Follower Combat Kills 25 Aligned with FarCom 300 Friendly Fire -17 Cogmind --------- Core Integrity 110/250 Matter 300/300 Energy 100/100 System Corruption 0% Temperature Cool (0) Movement Rolling (140) Ox4 Location -9/Mines Parts ------- > --- POWER (1) -------- (None) > --- PROPULSION (2) --- Wheel > --- UTILITY (2) ------ High-capacity Storage Unit Trap Reconfigurator > --- WEAPON (2) ------- Small Laser Light Assault Rifle > --- INVENTORY (20) --- Ion Engine Ion Engine Ion Engine Ion Engine Light Ion Engine Light Ion Engine Light Ion Engine Light Nuclear Core Light Treads Light Treads Light Treads Wheel Medium Storage Unit Large Storage Unit High-capacity Matter Pod (200) Authchip [R/NC] Authchip [Power] Authchip [Propulsion] Grenade Launcher Ripper Peak State ------------ > --- POWER ------------ Ion Engine > --- PROPULSION ------- Wheel > --- UTILITY ---------- High-capacity Storage Unit Trap Reconfigurator > --- WEAPON ----------- EM Pulse Gun Light Assault Rifle > --- INVENTORY -------- Ion Engine Ion Engine Ion Engine Ion Engine Light Ion Engine Light Ion Engine Light Ion Engine Light Nuclear Core Light Treads Light Treads Light Treads Wheel Medium Storage Unit Large Storage Unit High-capacity Matter Pod Authchip [R/NC] Authchip [Power] Authchip [Propulsion] Grenade Launcher Ripper [Rating: 17] Favorites ----------- Power Ion Engine Engine Ion Engine Propulsion Wheel Treads Light Treads Wheel Wheel Utility High-capacity Storage Unit Device Structural Scanner Storage High-capacity Storage Unit Weapon EM Pulse Gun Energy Gun EM Pulse Gun Ballistic Gun Light Assault Rifle Build | -11 -10 -10 -10 -9 ------- Run | Yrd Mat Min Exi Min Slots Evolved . | . . . . . Power . | . . . . . Propulsion . | . . . . . Utility . | . . . . . Weapon . | . . . . . Parts Attached 21 | 6 10 3 1 1 Power 3 | 1 1 1 . . Engine 3 | 1 1 1 . . Core . | . . . . . Reactor . | . . . . . Propulsion 4 | 2 1 1 . . Treads 1 | 1 . . . . Leg . | . . . . . Wheel 3 | 1 1 1 . . Hover . | . . . . . Flight . | . . . . . Utility 5 | 1 3 . 1 . Device 2 | . 1 . 1 . Storage 3 | 1 2 . . . Processor . | . . . . . Hackware . | . . . . . Protection . | . . . . . Artifact . | . . . . . Weapon 9 | 2 5 1 . 1 Energy Gun 3 | 1 1 . . 1 Energy Cannon . | . . . . . Ballistic Gun 6 | 1 4 1 . . Ballistic Cannon . | . . . . . Launcher . | . . . . . Special Weapon . | . . . . . Impact Weapon . | . . . . . Slashing Weapon . | . . . . . Piercing Weapon . | . . . . . Special Melee Weapon . | . . . . . Unidentified Prototypes . | . . . . . Parts Lost 5 | . 3 . . 2 Power 1 | . . . . 1 Propulsion . | . . . . . Utility 1 | . 1 . . . Weapon 3 | . 2 . . 1 Highest Loss Streak 2 | . 1 . . 2 To Critical Strikes . | . . . . . Average Slot Usage (%) 78 | . 88 71 77 66 Engine 13 | . 14 14 14 4 Treads 5 | . 14 . . . Wheel 13 | . 14 13 14 14 Device 2 | . 4 . 6 14 Storage 14 | . 14 14 14 14 Energy Gun 12 | . 10 14 14 4 Ballistic Gun 14 | . 15 13 14 14 Naked Turns . | . . . . . Heaviest Build 50 | 11 50 48 49 49 Greatest Support 20 | 20 20 20 10 10 Greatest Overweight (x) 15 | 2 3 15 4 4 Average Overweight (x) 2 | . 1 3 4 4 Largest Inventory Capacity 20 | 8 20 20 20 20 Average Capacity 16 | 7 12 20 20 20 Most Carried 20 | 8 19 20 20 20 Average Carried 15 | 5 9 19 20 20 Final Capacity 20 | 8 20 20 20 20 Final Carried 20 | 8 19 20 20 20 Class Distribution -------------------- 100% | Mutant Dominant Class ---------------- Mutant | -10/Materials Mutant | -10/Mines Mutant | -10/Exiles Mutant | -9/Mines Resources | -11 -10 -10 -10 -9 ----------- Run | Yrd Mat Min Exi Min Matter Collected 530 | 263 203 38 . 26 Remotely . | . . . . . Salvage Created 904 | 63 514 278 . 49 Parts 51 | 2 33 14 . 2 Haulers Intercepted 2 | . 2 . . . Recyclers Shooed 2 | . 1 1 . . Parts Field Recycled . | . . . . . Retrieved Matter . | . . . . . Parts Self-Destructed . | . . . . . Prevented . | . . . . . Kills | -11 -10 -10 -10 -9 ------- Run | Yrd Mat Min Exi Min Combat Hostiles Destroyed 14 | . 11 2 . 1 Guns 13 | . 10 2 . 1 AOE 1 | . 1 . . . Classes Destroyed 5 | 1 3 1 . . Worker 1 | . . 1 . . Hauler 2 | . 2 . . . Recycler 3 | 1 . 2 . . Swarmer 3 | . 3 . . . Grunt 11 | . 8 2 . 1 Best Kill Streak 3 | 1 3 3 . 1 Combat Bots Only 3 | . 3 2 . 1 Max Kills in Single Turn 2 | 1 1 2 . 1 Gunslinging . | . . . . . Exploded 1 | . 1 . . . Melee . | . . . . . Uniques/NPCs Destroyed . | . . . . . Combat | -11 -10 -10 -10 -9 -------- Run | Yrd Mat Min Exi Min Hostile Shots Fired 84 | . 54 11 . 19 Missed 20 | . 13 4 . 3 Damage Taken 874 | . 480 138 . 256 Core 140 | . 45 37 . 58 Absorbed by Shields . | . . . . . Core Remaining (%) 100 | 100 . . . . Volleys Fired 90 | 3 63 8 . 16 Largest 2 | 2 2 2 . 2 Hottest 60 | 60 60 60 . 60 Shots Fired 152 | 6 110 16 . 20 Gun 152 | 6 110 16 . 20 Cannon . | . . . . . Launcher . | . . . . . Special . | . . . . . Kinetic 98 | 3 71 8 . 16 Thermal . | . . . . . Explosive . | . . . . . Electromagnetic 54 | 3 39 8 . 4 Robot Hit Streak 9 | 2 9 6 . 6 Robot Miss Streak 6 | 1 4 3 . 6 Penetration Max . | . . . . . Secondary Targets 2 | . 2 . . . Max Gunslinging Chain 1 | . 1 . . . Shots Hit Robots 92 | 4 67 9 . 12 Core Hits 41 | 2 27 8 . 4 Critical Kills . | . . . . . Critical Parts Destroyed . | . . . . . Critical Strikes 1 | . 1 . . . Corrupt 1 | . 1 . . . Melee Attacks . | . . . . . Impact . | . . . . . Slashing . | . . . . . Piercing . | . . . . . Sneak Attacks . | . . . . . Combat Hostiles . | . . . . . Follow-up Attacks . | . . . . . Damage Inflicted 1177 | 57 833 168 . 119 Guns 1062 | 57 778 108 . 119 Cannons . | . . . . . Explosions 115 | . 55 60 . . Melee . | . . . . . Ramming . | . . . . . Kinetic 473 | 15 366 13 . 79 Thermal 115 | . 55 60 . . Explosive . | . . . . . Electromagnetic 589 | 42 412 95 . 40 Impact . | . . . . . Slashing . | . . . . . Piercing . | . . . . . Highest Corruption . | . . . . . Average Corruption . | . . . . . Corruption Purged . | . . . . . Corruption Blocked . | . . . . . Overload Shots . | . . . . . Overflow Damage 13 | . 13 . . . Projectiles . | . . . . . Explosions 13 | . 13 . . . Melee . | . . . . . Knockbacks . | . . . . . Impact . | . . . . . Kinetic . | . . . . . Secondary . | . . . . . Self-Inflicted Damage 98 | . 39 59 . . Shots 3 | . 1 2 . . Rammed . | . . . . . Targets Rammed . | . . . . . Kicked . | . . . . . Crushed . | . . . . . Highest Temperature 82 | 20 52 78 . 82 Average Temperature 27 | 13 20 40 . 40 Received Heat Transfer 303 | . 111 45 . 147 Siege Activations . | . . . . . Robots Corrupted . | . . . . . Combat Hostiles . | . . . . . Parts Fried 2 | . 2 . . . Impact Corruptions . | . . . . . Robots Melted . | . . . . . Combat Hostiles . | . . . . . Parts Melted . | . . . . . Heat Transferred 150 | . 50 100 . . Parts Sabotaged . | . . . . . Parts Stolen . | . . . . . Parts Stripped . | . . . . . Power Chain Reactions 2 | . 1 1 . . Alert | -11 -10 -10 -10 -9 ------- Run | Yrd Mat Min Exi Min Peak Influence 155 | 5 155 135 . 30 Initial 50 | . 3 50 . . Average 40 | 1 46 39 . 13 Maximum Alert Level . | . . . . . Low Security (%) 100 | 100 100 100 . 100 Level 1 . | . . . . . Level 2 . | . . . . . Level 3 . | . . . . . Level 4 . | . . . . . Level 5 . | . . . . . High Security . | . . . . . Max Security . | . . . . . Squads Dispatched 4 | . 4 . . . Investigation 2 | . 2 . . . Extermination . | . . . . . Reinforcement 2 | . 2 . . . Assault . | . . . . . Garrison . | . . . . . Intercept . | . . . . . Searches Triggered . | . . . . . Construction Impeded . | . . . . . Haulers Reinforced . | . . . . . Active Scanning Responses . | . . . . . Cargo Convoy Interrupts . | . . . . . Stealth | -11 -10 -10 -10 -9 --------- Run | Yrd Mat Min Exi Min Distress Signals 4 | . 4 . . . Communications Jammed . | . . . . . Distress Signals . | . . . . . Times Spotted 31 | . 26 2 . 3 Peak Tracking Total 5 | . 5 2 . 3 Tactical Retreats . | . . . . . Traps | -11 -10 -10 -10 -9 ------- Run | Yrd Mat Min Exi Min Traps Triggered 1 | . 1 . . . Indirectly . | . . . . . Trap Hack Attempts . | . . . . . Triggered . | . . . . . Disarmed . | . . . . . Reprogrammed . | . . . . . Reused . | . . . . . Traps Extracted . | . . . . . Installed . | . . . . . Triggered . | . . . . . Machines | -11 -10 -10 -10 -9 ---------- Run | Yrd Mat Min Exi Min Machines Disabled 1 | . . 1 . . Max in Single Turn 1 | . . 1 . . Machines Repaired . | . . . . . Machines Dismantled . | . . . . . Machines Sabotaged . | . . . . . Overloaded Fab Kills . | . . . . . Hacking | -11 -10 -10 -10 -9 --------- Run | Yrd Mat Min Exi Min Machines Accessed 6 | . 5 . 1 . Terminals 5 | . 5 . . . Fabricators . | . . . . . Repair Stations . | . . . . . Recycling Units . | . . . . . Scanalyzers . | . . . . . Garrison Access . | . . . . . Total Hacks 17 | . 16 . 1 . Successful 7 | . 6 . 1 . Failed 9 | . 9 . . . Catastrophic . | . . . . . Database Lockouts 1 | . 1 . . . Manual 17 | . 16 . 1 . Terminals 16 | . 16 . . . Fabricators . | . . . . . Repair Stations . | . . . . . Recycling Units . | . . . . . Scanalyzers . | . . . . . Garrison Access . | . . . . . Terminal Hacks 4 | . 3 . 1 . Robot Analysis 2 | . 2 . . . Hauler Manifests 1 | . 1 . . . Derelict Proto ID Bank 1 | . . . 1 . Fabricator Hacks . | . . . . . Repair Station Hacks . | . . . . . Recycling Unit Hacks . | . . . . . Scanalyzer . | . . . . . Garrison Access Hacks . | . . . . . Unauthorized Hacks 3 | . 3 . . . Terminals 3 | . 3 . . . Botnet 3 | . 3 . . . Fabricators . | . . . . . Repair Stations . | . . . . . Recycling Units . | . . . . . Scanalyzers . | . . . . . Garrison Access . | . . . . . Data Cores Recovered . | . . . . . Used . | . . . . . Hacking Detections 3 | . 3 . . . Full Trace Events 1 | . 1 . . . Feedback Events . | . . . . . Feedback Blocked . | . . . . . Robot Schematics Acquired . | . . . . . Robots Built . | . . . . . Authchips . | . . . . . Time . | . . . . . Total Robot Build Rating . | . . . . . Part Schematics Acquired . | . . . . . Parts Built . | . . . . . Authchips . | . . . . . Time . | . . . . . Total Part Build Rating . | . . . . . Parts Repaired . | . . . . . Time . | . . . . . Parts Recycled . | . . . . . Recycled Matter . | . . . . . Retrieved Matter . | . . . . . Retrieved Components . | . . . . . Parts Scanalyzed . | . . . . . Part Schematics Acquired . | . . . . . Parts Damaged . | . . . . . Bothacking | -11 -10 -10 -10 -9 ------------ Run | Yrd Mat Min Exi Min Used RIF Installer . | . . . . . Robots Hacked . | . . . . . Non-combat . | . . . . . Combat . | . . . . . Robot Hacks Applied . | . . . . . Relay Couplers Released . | . . . . . Fabnet Peak Effective % . | . . . . . Robots Rewired . | . . . . . Allies Hacked . | . . . . . Hacks Repelled . | . . . . . Allies | -11 -10 -10 -10 -9 -------- Run | Yrd Mat Min Exi Min Total Allies 5 | . . 5 . . Largest Group 5 | . . 5 4 3 Highest-Rated Group 85 | . . 85 71 40 Highest-Rated Ally 31 | . . 31 31 16 Total Orders . | . . . . . Ally Attacks 7 | . . . . 7 Total Damage 76 | . . . . 76 Kills 1 | . . . . 1 Allies Corrupted . | . . . . . Allies Melted . | . . . . . Intel | -11 -10 -10 -10 -9 ------- Run | Yrd Mat Min Exi Min Robot Analysis Total 2 | . 2 . . . Derelict Logs Recovered 2 | . . 2 . . Drone Launches . | . . . . . Drone Recoveries . | . . . . . Exploration | -11 -10 -10 -10 -9 ------------- Run | Yrd Mat Min Exi Min Turns Passed 2825 | 111 1059 1275 317 63 Spaces Moved 1711 | 58 561 846 226 20 Core 4 | 3 . 1 . . Treads 314 | 50 251 13 . . Legs . | . . . . . Wheels 1393 | 5 310 832 226 20 Hover . | . . . . . Flight . | . . . . . Fastest Speed 50 | 50 100 130 140 140 Average Speed 144 | 149 146 143 140 140 Slowest Speed 800 | 160 320 800 140 140 Overloaded Moves . | . . . . . Propulsion Burnouts . | . . . . . Robots Hopped . | . . . . . Cave-ins Triggered . | . . . . . Exploration Rate (%) 46 | 4 64 98 60 5 Regions Visited 4 Branch Regions 3 Pre-discovered Areas 2 | . . 2 . . Known Exits Taken . | . . . . . Unknown Exits Taken 4 | 1 1 1 1 . Scrap Searched 1 | . . 1 . . Spaces Dug . | . . . . . Terrain Destroyed 10 | . 5 5 . . Melee . | . . . . . Projectile . | . . . . . AOE 10 | . 5 5 . . Terrain Rammed . | . . . . . Walls Destroyed . | . . . . . Machines Disabled . | . . . . . Actions | -11 -10 -10 -10 -9 --------- Run | Yrd Mat Min Exi Min Total 1932 | 74 700 895 226 37 Wait 62 | . 35 27 . . Move 1707 | 57 560 845 225 20 Hop . | . . . . . Pick Up 32 | 8 18 6 . . Fast Attach 12 | 6 3 1 1 1 Attach 3 | . 1 2 . . Detach . | . . . . . Swap 6 | . 6 . . . Drop 20 | . 14 6 . . Fire 90 | 3 63 8 . 16 Melee . | . . . . . Ram . | . . . . . Kick . | . . . . . Crush . | . . . . . Escape Stasis . | . . . . . Rewire . | . . . . . Trap . | . . . . . Miscellaneous . | . . . . . Route ------- -11/Scrapyard -10/Materials (discovered 3 exits: [*Mat x2] / [*Min]) -10/Mines (discovered 3 exits: [*Mat x2] / *Exi) -10/Exiles -9/Mines History --------- Turn | Location | Event 15 | -11/Scrapyard | Discovered new exit (range 15) 112 | -11/Scrapyard | Entered Materials 280 | -10/Materials | Discovered new exit (range 9) 306 | -10/Materials | Build established: Mutant 603 | -10/Materials | Discovered new exit (range 16) 695 | -10/Materials | Central database locked down 1129 | -10/Materials | Discovered new exit (range 16) 1171 | -10/Materials | Entered Mines 1171 | -10/Mines | Discovered new exit (range 12) 1174 | -10/Mines | Learned location of Zion (-7) 1288 | -10/Mines | Learned location of 1 exit from Materials 1662 | -10/Mines | Assisted by bots powering up and referring to "LRC-V3" 1763 | -10/Mines | Learned location of Storage (-8) 2025 | -10/Mines | Deemed a non-threat by the Exiles lab entrance 2026 | -10/Mines | Discovered new exit (range 5) 2224 | -10/Mines | A weapon hastily lodged in a ceiling crevice suddenly fell to the ground 2269 | -10/Mines | Discovered new exit (range 6) 2446 | -10/Mines | Entered Exiles 2446 | -10/Exiles | Accompanied by 4 allies 2476 | -10/Exiles | Led the pair of lost Derelicts to a safe place 2483 | -10/Exiles | Met 8R-AWN 2505 | -10/Exiles | Met EX-HEX 2547 | -10/Exiles | Met EX-BIN 2565 | -10/Exiles | Aligned with FarCom system 2567 | -10/Exiles | Given EX-Vault access code 2602 | -10/Exiles | Opened EX-Vault 2617 | -10/Exiles | Found Trap Reconfigurator 2648 | -10/Exiles | Warned to stay clear of 0b10 Research branches 2697 | -10/Exiles | Met EX-DEC 2748 | -10/Exiles | Discovered new exit (range 10) 2763 | -10/Exiles | Left Exiles lab with Trap Reconfigurator 2763 | -10/Exiles | Entered Mines 2763 | -9/Mines | Accompanied by 3 allies 2768 | -9/Mines | Met a Derelict bent on vengeance 2799 | -9/Mines | Core integrity fell below 50% 2806 | -9/Mines | Lost 3 allies 2826 | -9/Mines | Self-destructed Last Messages --------------- 02748_ EXIT=FOUND LOCATION=UNKNOWN GOAL=ESCAPE 02763_ Receiving FarCom transmissions... 02764_ A derelict wanders into view. 02765_ Mercenary 1a destroyed. 02767_ Trooper 1a destroyed. 02769_ G-34 Mercenary suffers critical hit (Burn). 02771_ G-34 Mercenary destroyed. 02775_ Trooper 1b destroyed. 02777_ G-47 Trooper IFF system glitched. 02777_ G-34 Mercenary destroyed. 02779_ EM Pulse Gun destroyed. 02783_ Ion Engine destroyed. 02786_ Acquired 8 matter. 02801_ G-47 Trooper destroyed. 02805_ Acquired 8 matter. 02816_ Acquired Sml. Laser. 02817_ Acquired 10 matter. Map ----- +----------------------------------------------------+ | ?????????????????????????????????????????????????? | | ?????????????????????????????????????????????????? | | ?????????????????????????????????????????????????? | | ?????????????????????????????????????????????????? | | ?????????????????????????????????????????????????? | | ?????????????????????????????????????????????????? | | ?????????????????????????????????????????????????? | | ?????????????????????????????????????????????????? | | ?????????????????????????????????????????????????? | | ?????????????????????????????????????????????????? | | ?????????????????????????????????????????????????? | | ?????????????????????????????????????????????????? | | ?????????????????????????????????????????????????? | | ?????????????????????????????????????????????????? | | ?????????????????????????????????????????????????? | | ?????????????????????????????????????????????????? | | ????????????????????????????###??????????????????? | | ???????????????????????????# ##?????????????????? | | ??????????????????????????? #?????????????????? | | ??????????????????????????? ##????????????????? | | ??????????????????????????# ### #????????????? | | ??????????????########??## ??????????????? | | ??????????????# %%#?## #????????????????? | | ??????????????# = [#?# #?????????????????? | | ??????????????# *%%### #????????????????????? | | ??????????????# [==! @ #?????????????????????? | | ??????????????# % *## ####?????????????????????? | | ??????????????# ## #????????????????????????? | | ??????????????######### #????????????????????????? | | ??????????????????????# #????????????????????????? | | ??????????????????????# #????????????????????????? | | ?????????????????????? #????????????????????????? | | ????????????????s?????###????????????????????????? | | ?????????????????sss?????????????????????????????? | | ?????????????????????????????????????????????????? | | ?????????????????????????????????????????????????? | | ?????????????????????????????????????????????????? | | ?????????????????????????????????????????????????? | | ?????????????????????????????????????????????????? | | | | | | | | | | | | | | | | | | | | | | | +----------------------------------------------------+ Best States ------------- Heat Dissipation 25 Energy Generation 10 Energy Capacity 250 Matter Stores 300 Matter Capacity 300 Sight Range 16 Terrain Scan Density 10 Evasion (%) 44 Recoil Reduction 1 Authchip Count 4 Item Schematics ----------------- None Robot Schematics ------------------ None Fabricated ------------ Nothing Alien Tech Used ----------------- None Achievements -------------- None Challenges ------------ None Game ------ Seed SmartbombSpreadShearcannon Manual? 0 Play Time 00:18:52 Cumulative 21.0 hours Start 2024.03.05 @ 19:22:13 End 2024.03.05 @ 19:40:48 Sessions 1 Manual Loads 0 Difficulty Rogue Special Mode None Game No. 20 Rogue 20 Adventurer 0 Explorer 0 Win Type - Total 0 Types 0/0/0/0/0/0/0/0/0 Lore% 21 Gallery% 20 Achievement% 21 Wizard Run 0 Options --------- Layout 1 ASCII 0 Keyboard 0 Movement Numpad Keybinds 0 Fullscreen 2 Font 24/Smallcaps Map View 50x35 Zoom Use 0% Tactical HUD 1 Map Filters NONE Filters NONE Steam 0 RUN: a49dcc70-1cd0-466f-a097-f81d68d2f981